[Event "Open Nuevo Centro. Jornada 1"]
[Site "Chess.com"]
[Date "2020.06.19"]
[Round "3"]
[White "Yatseta Fernandez, Marc Kazymyr"]
[Black "Zamora Soler, Raul"]
[Result "1-0"]
[WhiteElo "1403"]
[BlackElo "1746"]
[TimeControl "180+2"]
[EndTime "11:06:34 PDT"]
[Termination "Victoria de K_73 por jaque mate"]

1. d4 {[%clk 0:03:00.2]} 1... d5 {[%clk 0:03:00]} 2. c4 {[%clk 0:03:01.5]} 2...
e6 {[%clk 0:02:59.1]} 3. g3 {[%clk 0:03:02.6]} 3... Nf6 {[%clk 0:02:59.1]} 4.
Bg2 {[%clk 0:03:03.7]} 4... Be7 {[%clk 0:02:59]} 5. Nf3 {[%clk 0:03:04.6]} 5...
c6 {[%clk 0:02:59.1]} 6. O-O {[%clk 0:03:05.8]} 6... O-O {[%clk 0:02:56.5]} 7.
Bf4 {[%clk 0:03:06.7]} 7... Nbd7 {[%clk 0:02:56.6]} 8. Nbd2 {[%clk 0:03:01.6]}
8... dxc4 {[%clk 0:02:54]} 9. Nxc4 {[%clk 0:03:01.5]} 9... Nd5 {[%clk
0:02:54.8]} 10. Be3 {[%clk 0:02:58.4]} 10... b5 {[%clk 0:02:51.7]} 11. Nce5
{[%clk 0:02:57.2]} 11... Nxe3 {[%clk 0:02:48]} 12. fxe3 {[%clk 0:02:57.5]} 12...
Bb7 {[%clk 0:02:43.2]} 13. Rc1 {[%clk 0:02:51.3]} 13... Rc8 {[%clk 0:02:40.1]}
14. Nxd7 {[%clk 0:02:49.2]} 14... Qxd7 {[%clk 0:02:39.7]} 15. Ne5 {[%clk
0:02:50.5]} 15... Qd6 {[%clk 0:02:39.4]} 16. a3 {[%clk 0:02:40.5]} 16... Ba8
{[%clk 0:02:11.7]} 17. b4 {[%clk 0:02:39.3]} 17... f6 {[%clk 0:02:08.2]} 18. Nd3
{[%clk 0:02:29.8]} 18... a5 {[%clk 0:02:07.3]} 19. Nc5 {[%clk 0:02:26.2]} 19...
axb4 {[%clk 0:02:06.8]} 20. axb4 {[%clk 0:02:26.8]} 20... e5 {[%clk 0:01:55.4]}
21. Qb3+ {[%clk 0:02:07]} 21... Kh8 {[%clk 0:01:53.5]} 22. dxe5 {[%clk
0:02:05.3]} 22... Qxe5 {[%clk 0:01:48]} 23. Nd7 {[%clk 0:01:56.4]} 23... Qd6
{[%clk 0:01:30.4]} 24. Rfd1 {[%clk 0:01:51.1]} 24... Qxb4 {[%clk 0:01:28.8]} 25.
Qxb4 {[%clk 0:01:49.6]} 25... Bxb4 {[%clk 0:01:28.4]} 26. Nxf8 {[%clk
0:01:50.2]} 26... Bxf8 {[%clk 0:01:27.5]} 27. Rd7 {[%clk 0:01:39.6]} 27... c5
{[%clk 0:01:26.6]} 28. Bd5 {[%clk 0:01:29.5]} 28... Bxd5 {[%clk 0:01:25.9]} 29.
Rxd5 {[%clk 0:01:29.3]} 29... b4 {[%clk 0:01:27.3]} 30. Kf1 {[%clk 0:01:13.4]}
30... c4 {[%clk 0:01:26.6]} 31. Rb5 {[%clk 0:01:10.5]} 31... c3 {[%clk 0:01:26]}
32. Ke1 {[%clk 0:01:10.2]} 32... Bc5 {[%clk 0:01:17.9]} 33. e4 {[%clk
0:01:02.7]} 33... Be3 {[%clk 0:01:18.1]} 34. Rc2 {[%clk 0:01:01.2]} 34... Bd2+
{[%clk 0:01:18.4]} 35. Kd1 {[%clk 0:01:01.9]} 35... Ra8 {[%clk 0:01:11.5]} 36.
Rxd2 {[%clk 0:00:53.7]} 36... cxd2 {[%clk 0:01:02.9]} 37. Kxd2 {[%clk 0:00:54]}
37... Ra2+ {[%clk 0:00:58.4]} 38. Kc1 {[%clk 0:00:54.6]} 38... h6 {[%clk
0:00:57.9]} 39. Rxb4 {[%clk 0:00:38]} 39... Rxe2 {[%clk 0:00:57.4]} 40. Rb2
{[%clk 0:00:29.6]} 40... Rxe4 {[%clk 0:00:57]} 41. Kd2 {[%clk 0:00:25.1]} 41...
Kh7 {[%clk 0:00:56.6]} 42. Kd3 {[%clk 0:00:25]} 42... Re1 {[%clk 0:00:56.7]} 43.
Rb7 {[%clk 0:00:21.3]} 43... h5 {[%clk 0:00:52.9]} 44. Kd2 {[%clk 0:00:20.2]}
44... Rh1 {[%clk 0:00:52.8]} 45. h4 {[%clk 0:00:17.5]} 45... Rg1 {[%clk
0:00:47.2]} 46. Rb3 {[%clk 0:00:15.8]} 46... Rg2+ {[%clk 0:00:46]} 47. Ke1
{[%clk 0:00:16.4]} 47... Kg6 {[%clk 0:00:46.5]} 48. Kf1 {[%clk 0:00:16.9]} 48...
Rc2 {[%clk 0:00:45]} 49. Ke1 {[%clk 0:00:16.6]} 49... f5 {[%clk 0:00:42.9]} 50.
Rb6+ {[%clk 0:00:15]} 50... Kh7 {[%clk 0:00:41.9]} 51. Rb5 {[%clk 0:00:12.5]}
51... g6 {[%clk 0:00:42]} 52. Rb7+ {[%clk 0:00:12.9]} 52... Kh6 {[%clk
0:00:42.6]} 53. Rb8 {[%clk 0:00:12.6]} 53... Rg2 {[%clk 0:00:33.1]} 54. Rb3
{[%clk 0:00:10.3]} 54... f4 {[%clk 0:00:30.3]} 55. gxf4 {[%clk 0:00:06.9]} 55...
Rg4 {[%clk 0:00:30.6]} 56. Rb4 {[%clk 0:00:02.9]} 56... Rxh4 {[%clk 0:00:30.8]}
57. Kf2 {[%clk 0:00:03.4]} 57... Rxf4+ {[%clk 0:00:27.7]} 58. Rxf4 {[%clk
0:00:02.8]} 58... Kg5 {[%clk 0:00:28.8]} 59. Ra4 {[%clk 0:00:02.9]} 59... h4
{[%clk 0:00:29.8]} 60. Kg2 {[%clk 0:00:03.5]} 60... Kh5 {[%clk 0:00:31]} 61. Kh3
{[%clk 0:00:03.3]} 61... g5 {[%clk 0:00:32.1]} 62. Kh2 {[%clk 0:00:02.6]} 62...
Kg6 {[%clk 0:00:31.8]} 63. Kh3 {[%clk 0:00:03.2]} 63... Kh5 {[%clk 0:00:32.2]}
64. Ra5 {[%clk 0:00:04.3]} 64... Kh6 {[%clk 0:00:32.6]} 65. Kg4 {[%clk
0:00:05.4]} 65... h3 {[%clk 0:00:33.4]} 66. Kxh3 {[%clk 0:00:05.2]} 66... Kh5
{[%clk 0:00:33.9]} 67. Kg3 {[%clk 0:00:04.9]} 67... Kg6 {[%clk 0:00:34.7]} 68.
Kg4 {[%clk 0:00:05.8]} 68... Kf6 {[%clk 0:00:36.6]} 69. Rxg5 {[%clk 0:00:06.2]}
69... Ke6 {[%clk 0:00:38.2]} 70. Ra5 {[%clk 0:00:07.4]} 70... Kd6 {[%clk
0:00:39]} 71. Kf4 {[%clk 0:00:08.4]} 71... Kc6 {[%clk 0:00:21.3]} 72. Rh5 {[%clk
0:00:10.3]} 72... Kd6 {[%clk 0:00:19.1]} 73. Ke4 {[%clk 0:00:11.3]} 73... Ke6
{[%clk 0:00:19.7]} 74. Re5+ {[%clk 0:00:11.3]} 74... Kf6 {[%clk 0:00:20.7]} 75.
Kf4 {[%clk 0:00:11.5]} 75... Kg6 {[%clk 0:00:21.1]} 76. Kg4 {[%clk 0:00:12]}
76... Kf6 {[%clk 0:00:21.4]} 77. Kf4 {[%clk 0:00:12.6]} 77... Kg6 {[%clk
0:00:22]} 78. Re6+ {[%clk 0:00:13]} 78... Kf7 {[%clk 0:00:23.1]} 79. Kf5 {[%clk
0:00:13.4]} 79... Kg7 {[%clk 0:00:24.4]} 80. Re7+ {[%clk 0:00:13.9]} 80... Kf8
{[%clk 0:00:24]} 81. Kf6 {[%clk 0:00:14.7]} 81... Kg8 {[%clk 0:00:25.4]} 82. Ra7
{[%clk 0:00:13]} 82... Kh8 {[%clk 0:00:25.2]} 83. Kg6 {[%clk 0:00:13.5]} 83...
Kg8 {[%clk 0:00:24.4]} 84. Ra8# {[%clk 0:00:15.4]} 1

[Event "Open Nuevo Centro. Jornada 1"]
[Site "Chess.com"]
[Date "2020.06.19"]
[Round "3"]
[White "Yuste Valenzuela, Alejandro"]
[Black "Aymerich Rosell, Pablo"]
[Result "1-0"]
[WhiteElo "1793"]
[BlackElo "2007"]
[TimeControl "180+2"]
[EndTime "11:06:54 PDT"]
[Termination "Victoria de alejandrito290 por jaque mate"]

1. e4 {[%clk 0:03:01.9]} 1... c6 {[%clk 0:02:56.7]} 2. d4 {[%clk 0:03:02.7]}
2... d5 {[%clk 0:02:57.8]} 3. e5 {[%clk 0:03:01.4]} 3... c5 {[%clk 0:02:58.1]}
4. dxc5 {[%clk 0:03:03.3]} 4... e6 {[%clk 0:02:59.2]} 5. a3 {[%clk 0:03:04.1]}
5... Bxc5 {[%clk 0:02:59.8]} 6. b4 {[%clk 0:03:05.2]} 6... Be7 {[%clk
0:03:00.9]} 7. Bb2 {[%clk 0:03:05.1]} 7... Nh6 {[%clk 0:03:01.2]} 8. Nf3 {[%clk
0:03:02.5]} 8... O-O {[%clk 0:03:00.3]} 9. Bd3 {[%clk 0:03:02.2]} 9... a5 {[%clk
0:03:00.7]} 10. b5 {[%clk 0:03:02.5]} 10... Nd7 {[%clk 0:03:01.7]} 11. Nbd2
{[%clk 0:02:59.9]} 11... Nc5 {[%clk 0:03:02.6]} 12. O-O {[%clk 0:02:58.6]} 12...
b6 {[%clk 0:02:58.1]} 13. Nb3 {[%clk 0:02:54.4]} 13... Nxd3 {[%clk 0:02:49.7]}
14. cxd3 {[%clk 0:02:53.8]} 14... a4 {[%clk 0:02:34.1]} 15. Nbd4 {[%clk
0:02:52.1]} 15... Bc5 {[%clk 0:02:30.1]} 16. Nc6 {[%clk 0:02:46.8]} 16... Qc7
{[%clk 0:02:25.7]} 17. d4 {[%clk 0:02:47.4]} 17... Be7 {[%clk 0:02:21.8]} 18.
Rc1 {[%clk 0:02:45.7]} 18... Bb7 {[%clk 0:02:09.1]} 19. h3 {[%clk 0:02:40.9]}
19... Bxc6 {[%clk 0:01:59.9]} 20. Rxc6 {[%clk 0:02:34.7]} 20... Qb7 {[%clk
0:01:57.1]} 21. Qc2 {[%clk 0:02:32.2]} 21... Rfc8 {[%clk 0:01:54.4]} 22. Rc1
{[%clk 0:02:33.6]} 22... Rxc6 {[%clk 0:01:51.6]} 23. Qxc6 {[%clk 0:02:33.3]}
23... Qxc6 {[%clk 0:01:42.4]} 24. Rxc6 {[%clk 0:02:32.9]} 24... Rb8 {[%clk
0:01:26.2]} 25. g4 {[%clk 0:02:27.8]} 25... Kf8 {[%clk 0:01:11.3]} 26. Kf1
{[%clk 0:02:13]} 26... Ke8 {[%clk 0:01:11.9]} 27. Ne1 {[%clk 0:02:11.8]} 27...
Kd7 {[%clk 0:01:04.7]} 28. Nd3 {[%clk 0:02:10.1]} 28... Ng8 {[%clk 0:00:53.7]}
29. f4 {[%clk 0:02:05.6]} 29... Bf8 {[%clk 0:00:53.5]} 30. Ke2 {[%clk
0:01:54.2]} 30... Ne7 {[%clk 0:00:54.2]} 31. Rc2 {[%clk 0:01:48.6]} 31... Ng6
{[%clk 0:00:41.6]} 32. f5 {[%clk 0:01:27.6]} 32... Ne7 {[%clk 0:00:26.4]} 33. f6
{[%clk 0:01:03]} 33... gxf6 {[%clk 0:00:17.4]} 34. exf6 {[%clk 0:01:04.9]} 34...
Ng6 {[%clk 0:00:18.6]} 35. h4 {[%clk 0:00:59.7]} 35... Bd6 {[%clk 0:00:19.3]}
36. h5 {[%clk 0:00:57.5]} 36... Nf4+ {[%clk 0:00:20.3]} 37. Nxf4 {[%clk
0:00:58.6]} 37... Bxf4 {[%clk 0:00:22.2]} 38. Kd3 {[%clk 0:00:51.2]} 38... Rg8
{[%clk 0:00:22.3]} 39. Rg2 {[%clk 0:00:34.3]} 39... Bd6 {[%clk 0:00:21.9]} 40.
Bc1 {[%clk 0:00:24.1]} 40... Ra8 {[%clk 0:00:21.5]} 41. g5 {[%clk 0:00:22.3]}
41... Ra5 {[%clk 0:00:22.2]} 42. g6 {[%clk 0:00:22.3]} 42... fxg6 {[%clk
0:00:22.2]} 43. hxg6 {[%clk 0:00:24.2]} 43... hxg6 {[%clk 0:00:21]} 44. Rxg6
{[%clk 0:00:25]} 44... Rxb5 {[%clk 0:00:21.9]} 45. Rg7+ {[%clk 0:00:26.1]} 45...
Ke8 {[%clk 0:00:20.9]} 46. f7+ {[%clk 0:00:24.3]} 46... Kd8 {[%clk 0:00:16.3]}
47. Rg8+ {[%clk 0:00:22.4]} 47... Kc7 {[%clk 0:00:14.9]} 48. f8=Q {[%clk
0:00:22.9]} 48... Bxf8 {[%clk 0:00:15.5]} 49. Rxf8 {[%clk 0:00:24.8]} 49... Rb3+
{[%clk 0:00:15.9]} 50. Kc2 {[%clk 0:00:24.4]} 50... Kc6 {[%clk 0:00:14.7]} 51.
Rc8+ {[%clk 0:00:24.4]} 51... Kd6 {[%clk 0:00:14.4]} 52. Bf4+ {[%clk 0:00:21.1]}
52... Kd7 {[%clk 0:00:13.1]} 53. Rc7+ {[%clk 0:00:21.4]} 53... Kd8 {[%clk
0:00:13.4]} 54. Rc3 {[%clk 0:00:22.1]} 54... Rb5 {[%clk 0:00:11.8]} 55. Be5
{[%clk 0:00:21.5]} 55... Kd7 {[%clk 0:00:07.9]} 56. Rc7+ {[%clk 0:00:21]} 56...
Kd8 {[%clk 0:00:08.6]} 57. Rc3 {[%clk 0:00:20.8]} 57... Kd7 {[%clk 0:00:08.9]}
58. Kd3 {[%clk 0:00:21.6]} 58... Rb1 {[%clk 0:00:09]} 59. Kc2 {[%clk 0:00:22.1]}
59... Rf1 {[%clk 0:00:08.5]} 60. Rg3 {[%clk 0:00:21.3]} 60... Rf2+ {[%clk
0:00:08.5]} 61. Kc3 {[%clk 0:00:21.5]} 61... Kc6 {[%clk 0:00:09]} 62. Kb4 {[%clk
0:00:20.2]} 62... Rb2+ {[%clk 0:00:09]} 63. Kc3 {[%clk 0:00:21.1]} 63... Rb3+
{[%clk 0:00:09.7]} 64. Kc2 {[%clk 0:00:22.3]} 64... Rxg3 {[%clk 0:00:08]} 65.
Bxg3 {[%clk 0:00:24.2]} 65... Kb5 {[%clk 0:00:08.9]} 66. Kc3 {[%clk 0:00:25.4]}
66... Kc6 {[%clk 0:00:08.8]} 67. Kb4 {[%clk 0:00:25.8]} 67... b5 {[%clk
0:00:06.7]} 68. Bh4 {[%clk 0:00:26.4]} 68... Kd6 {[%clk 0:00:06.1]} 69. Kxb5
{[%clk 0:00:26.3]} 69... e5 {[%clk 0:00:07.4]} 70. Bg3 {[%clk 0:00:27.5]} 70...
Ke6 {[%clk 0:00:05.1]} 71. Bxe5 {[%clk 0:00:28.2]} 71... Kd7 {[%clk 0:00:05.8]}
72. Kxa4 {[%clk 0:00:29.2]} 72... Kc6 {[%clk 0:00:06.9]} 73. Kb4 {[%clk
0:00:30.1]} 73... Kb6 {[%clk 0:00:07.2]} 74. a4 {[%clk 0:00:30.1]} 74... Kc6
{[%clk 0:00:07.9]} 75. a5 {[%clk 0:00:31.2]} 75... Kb7 {[%clk 0:00:09]} 76. Kc5
{[%clk 0:00:32.1]} 76... Ka6 {[%clk 0:00:10]} 77. Bc7 {[%clk 0:00:31.5]} 77...
Kb7 {[%clk 0:00:10.6]} 78. Bb6 {[%clk 0:00:31.9]} 78... Ka6 {[%clk 0:00:10.6]}
79. Kxd5 {[%clk 0:00:32.8]} 79... Kb5 {[%clk 0:00:11.5]} 80. Ke6 {[%clk
0:00:31.6]} 80... Kc6 {[%clk 0:00:11.4]} 81. d5+ {[%clk 0:00:32.1]} 81... Kb7
{[%clk 0:00:12.5]} 82. d6 {[%clk 0:00:32.6]} 82... Ka6 {[%clk 0:00:13]} 83. d7
{[%clk 0:00:33.4]} 83... Kb7 {[%clk 0:00:14.3]} 84. d8=Q {[%clk 0:00:33.8]}
84... Ka6 {[%clk 0:00:15.6]} 85. Qa8+ {[%clk 0:00:33.6]} 85... Kb5 {[%clk
0:00:16.4]} 86. a6 {[%clk 0:00:34.3]} 86... Kxb6 {[%clk 0:00:16.5]} 87. Qb7+
{[%clk 0:00:34.2]} 87... Kc5 {[%clk 0:00:17.3]} 88. Qd5+ {[%clk 0:00:33.5]}
88... Kb6 {[%clk 0:00:18.2]} 89. a7 {[%clk 0:00:28.7]} 89... Kxa7 {[%clk
0:00:18.9]} 90. Qb3 {[%clk 0:00:28.9]} 90... Ka6 {[%clk 0:00:19.8]} 91. Kd6
{[%clk 0:00:30]} 91... Ka5 {[%clk 0:00:20.8]} 92. Kc5 {[%clk 0:00:30.4]} 92...
Ka6 {[%clk 0:00:21.9]} 93. Qb6# {[%clk 0:00:31.2]} 1

[Event "Open Nuevo Centro. Jornada 1"]
[Site "Chess.com"]
[Date "2020.06.19"]
[Round "4"]
[White "Morata Briones, Carlos"]
[Black "Serradilla Revert, Rodrigo"]
[Result "1-0"]
[WhiteElo "590"]
[BlackElo "491"]
[TimeControl "180+2"]
[EndTime "11:10:03 PDT"]
[Termination "Victoria de CarlosMorata por jaque mate"]

1. e4 {[%clk 0:02:59.3]} 1... e5 {[%clk 0:02:59.1]} 2. Qh5 {[%clk 0:02:58.6]}
2... g6 {[%clk 0:02:55.7]} 3. Qxe5+ {[%clk 0:02:59.3]} 3... Be7 {[%clk
0:02:51.5]} 4. Qxh8 {[%clk 0:02:59.7]} 4... Kf8 {[%clk 0:02:43.4]} 5. b3 {[%clk
0:02:55.1]} 5... Bf6 {[%clk 0:02:42.5]} 6. Qxh7 {[%clk 0:02:53.7]} 6... Bxa1
{[%clk 0:02:35.8]} 7. c3 {[%clk 0:02:46.3]} 7... Nf6 {[%clk 0:02:29.2]} 8. Qh8+
{[%clk 0:02:45.3]} 8... Ng8 {[%clk 0:02:25.7]} 9. Bc4 {[%clk 0:02:44.7]} 9...
Qe8 {[%clk 0:02:09.9]} 10. Ba3+ {[%clk 0:02:38.5]} 10... d6 {[%clk 0:02:00.8]}
11. f3 {[%clk 0:02:37.4]} 11... g5 {[%clk 0:01:54.6]} 12. Qh7 {[%clk 0:02:37.1]}
12... g4 {[%clk 0:01:49.8]} 13. Kd1 {[%clk 0:02:35.6]} 13... gxf3 {[%clk
0:01:45.6]} 14. Nxf3 {[%clk 0:02:35.5]} 14... Qxe4 {[%clk 0:01:42.7]} 15. Qxf7#
{[%clk 0:02:34.5]} 1

[Event "Open Nuevo Centro. Jornada 1"]
[Site "Chess.com"]
[Date "2020.06.19"]
[Round "4"]
[White "Mena Sancho, Angel"]
[Black "Ainsa Jimenez, Lucas"]
[Result "1-0"]
[WhiteElo "1508"]
[BlackElo "989"]
[TimeControl "180+2"]
[EndTime "11:10:07 PDT"]
[Termination "Victoria de amena6 por jaque mate"]

1. e4 {[%clk 0:03:01]} 1... e5 {[%clk 0:03:00.9]} 2. Nf3 {[%clk 0:03:01.7]} 2...
Nc6 {[%clk 0:02:56.8]} 3. Bc4 {[%clk 0:03:02.2]} 3... Bc5 {[%clk 0:02:56.6]} 4.
b4 {[%clk 0:03:02.6]} 4... Bxb4 {[%clk 0:02:55.4]} 5. c3 {[%clk 0:03:03.9]} 5...
Bc5 {[%clk 0:02:55.8]} 6. d4 {[%clk 0:03:05.1]} 6... exd4 {[%clk 0:02:55.8]} 7.
cxd4 {[%clk 0:03:06.2]} 7... Bb4+ {[%clk 0:02:56]} 8. Bd2 {[%clk 0:03:04]} 8...
Bxd2+ {[%clk 0:02:55.8]} 9. Nbxd2 {[%clk 0:03:01.7]} 9... Nf6 {[%clk 0:02:54.6]}
10. e5 {[%clk 0:02:49.7]} 10... Ng8 {[%clk 0:02:45.2]} 11. Qb3 {[%clk 0:02:46]}
11... Qe7 {[%clk 0:02:42.3]} 12. O-O {[%clk 0:02:44.8]} 12... Nh6 {[%clk
0:02:25.7]} 13. d5 {[%clk 0:02:30.5]} 13... Nxe5 {[%clk 0:02:21.8]} 14. Nxe5
{[%clk 0:02:30.7]} 14... Qxe5 {[%clk 0:02:21.9]} 15. Rfe1 {[%clk 0:02:31.3]}
15... Qxe1+ {[%clk 0:02:19]} 16. Rxe1+ {[%clk 0:02:32.8]} 16... Kf8 {[%clk
0:02:18.4]} 17. d6 {[%clk 0:02:33.1]} 17... cxd6 {[%clk 0:02:18.3]} 18. Qe3
{[%clk 0:02:30.2]} 18... g6 {[%clk 0:02:11.4]} 19. Qxh6+ {[%clk 0:02:29.9]}
19... Kg8 {[%clk 0:02:10.8]} 20. Re8# {[%clk 0:02:30.6]} 1

[Event "Open Nuevo Centro. Jornada 1"]
[Site "Chess.com"]
[Date "2020.06.19"]
[Round "4"]
[White "Gimeno Higueras, Roberto"]
[Black "Simarro Peir�, Andr�s"]
[Result "1-0"]
[WhiteElo "2059"]
[BlackElo "1186"]
[TimeControl "180+2"]
[EndTime "11:10:10 PDT"]
[Termination "Victoria de Chicogrande2 por jaque mate"]

1. e4 {[%clk 0:03:01.9]} 1... e5 {[%clk 0:02:58.6]} 2. Nf3 {[%clk 0:03:02.6]}
2... Nc6 {[%clk 0:02:55.2]} 3. Bb5 {[%clk 0:03:03]} 3... a6 {[%clk 0:02:42.4]}
4. Ba4 {[%clk 0:03:03.6]} 4... Nf6 {[%clk 0:02:25.1]} 5. O-O {[%clk 0:03:03.4]}
5... Bc5 {[%clk 0:02:23.7]} 6. c3 {[%clk 0:03:01.7]} 6... Nxe4 {[%clk
0:02:22.8]} 7. Qe2 {[%clk 0:03:02.5]} 7... Nf6 {[%clk 0:02:20.9]} 8. d4 {[%clk
0:02:59.7]} 8... Bd6 {[%clk 0:02:10.9]} 9. Bxc6 {[%clk 0:02:52]} 9... bxc6
{[%clk 0:02:03.2]} 10. dxe5 {[%clk 0:02:52.8]} 10... Qe7 {[%clk 0:01:59.5]} 11.
Re1 {[%clk 0:02:53.6]} 11... a5 {[%clk 0:01:50]} 12. exf6 {[%clk 0:02:54.3]}
12... Qxe2 {[%clk 0:01:49.5]} 13. Rxe2+ {[%clk 0:02:54.2]} 13... Kf8 {[%clk
0:01:50.4]} 14. Nh4 {[%clk 0:02:46.5]} 14... gxf6 {[%clk 0:01:39.2]} 15. Bh6+
{[%clk 0:02:46.7]} 15... Kg8 {[%clk 0:01:33.6]} 16. Re8+ {[%clk 0:02:47]} 16...
Bf8 {[%clk 0:01:30.2]} 17. Rxf8# {[%clk 0:02:47.7]} 1

[Event "Open Nuevo Centro. Jornada 1"]
[Site "Chess.com"]
[Date "2020.06.19"]
[Round "4"]
[White "Maestre Soler, Sergio"]
[Black "Donate Moreno, David"]
[Result "0-1"]
[WhiteElo "957"]
[BlackElo "1487"]
[TimeControl "180+2"]
[EndTime "11:10:39 PDT"]
[Termination "Victoria de sylar48 por abandono"]

1. e4 {[%clk 0:03:01.8]} 1... c6 {[%clk 0:02:58]} 2. Nf3 {[%clk 0:02:56]} 2...
d5 {[%clk 0:02:57.7]} 3. Ng5 {[%clk 0:02:56.2]} 3... e5 {[%clk 0:02:51.4]} 4. d4
{[%clk 0:02:50.2]} 4... dxe4 {[%clk 0:02:48.9]} 5. Qh5 {[%clk 0:02:47.8]} 5...
Nh6 {[%clk 0:02:42.1]} 6. Bc4 {[%clk 0:02:24.3]} 6... g6 {[%clk 0:02:40.5]} 7.
Qf3 {[%clk 0:02:22.6]} 7... exf3 {[%clk 0:02:34.2]} 8. d5 {[%clk 0:02:20.7]}
8... fxg2 {[%clk 0:02:26.5]} 9. Rg1 {[%clk 0:02:20.1]} 9... cxd5 {[%clk
0:02:26.1]} 10. Bb3 {[%clk 0:02:20.1]} 10... Bf5 {[%clk 0:02:20.2]} 11. Nc3
{[%clk 0:02:18.5]} 11... d4 {[%clk 0:02:19.8]} 12. Nd5 {[%clk 0:02:17.8]} 12...
Bxc2 {[%clk 0:02:15.8]} 13. Ba4+ {[%clk 0:02:00.7]} 13... Bxa4 {[%clk
0:02:11.8]} 14. b3 {[%clk 0:01:58.5]} 14... Qa5+ {[%clk 0:02:10.9]} 15. Bd2
{[%clk 0:01:49.5]} 15... Bb4 {[%clk 0:02:07.6]} 0

[Event "Open Nuevo Centro. Jornada 1"]
[Site "Chess.com"]
[Date "2020.06.19"]
[Round "4"]
[White "Mart�nez Cuenca, Jose Andr�s"]
[Black "Yeste Campos, Manuel"]
[Result "1-0"]
[WhiteElo "1282"]
[BlackElo "923"]
[TimeControl "180+2"]
[EndTime "11:10:43 PDT"]
[Termination "Victoria de JoseAndres2008 por jaque mate"]

1. e4 {[%clk 0:03:01.9]} 1... c5 {[%clk 0:02:58.9]} 2. Nf3 {[%clk 0:03:00.4]}
2... d6 {[%clk 0:02:57.4]} 3. d4 {[%clk 0:02:55]} 3... cxd4 {[%clk 0:02:57.7]}
4. Nxd4 {[%clk 0:02:55.4]} 4... Nf6 {[%clk 0:02:58.2]} 5. Nc3 {[%clk 0:02:41.8]}
5... a6 {[%clk 0:02:57]} 6. Bd3 {[%clk 0:02:31.9]} 6... e5 {[%clk 0:02:54.5]} 7.
Nf3 {[%clk 0:02:30.3]} 7... Nc6 {[%clk 0:02:48.6]} 8. Ne2 {[%clk 0:02:28.4]}
8... Bg4 {[%clk 0:02:47.5]} 9. c3 {[%clk 0:02:26.2]} 9... Rc8 {[%clk 0:02:44.6]}
10. Ng3 {[%clk 0:02:14.9]} 10... Be7 {[%clk 0:02:37.6]} 11. O-O {[%clk
0:02:04.2]} 11... O-O {[%clk 0:02:35.3]} 12. Bg5 {[%clk 0:01:59]} 12... d5
{[%clk 0:02:30.5]} 13. exd5 {[%clk 0:01:55.5]} 13... Nxd5 {[%clk 0:02:25.9]} 14.
Bxe7 {[%clk 0:01:51.9]} 14... Qxe7 {[%clk 0:02:26.4]} 15. Qe2 {[%clk 0:01:39.6]}
15... Rfe8 {[%clk 0:02:16.3]} 16. Qe4 {[%clk 0:01:38.5]} 16... Bxf3 {[%clk
0:02:15.1]} 17. Qxh7+ {[%clk 0:01:37]} 17... Kf8 {[%clk 0:02:12.4]} 18. Qh8#
{[%clk 0:01:37.1]} 1

[Event "Open Nuevo Centro. Jornada 1"]
[Site "Chess.com"]
[Date "2020.06.19"]
[Round "4"]
[White "Haoyou, Deng"]
[Black "Macias Pino, Diego"]
[Result "0-1"]
[WhiteElo "1813"]
[BlackElo "2178"]
[TimeControl "180+2"]
[EndTime "11:11:40 PDT"]
[Termination "Victoria de jesuimafe por abandono"]

1. d4 {[%clk 0:03:01.9]} 1... d5 {[%clk 0:03:00.4]} 2. c4 {[%clk 0:03:02.3]}
2... dxc4 {[%clk 0:03:02.3]} 3. e3 {[%clk 0:03:03.3]} 3... Nf6 {[%clk
0:03:02.4]} 4. Bxc4 {[%clk 0:03:04.7]} 4... a6 {[%clk 0:03:03.8]} 5. a4 {[%clk
0:03:04.7]} 5... e6 {[%clk 0:03:00.5]} 6. Nf3 {[%clk 0:03:05.2]} 6... b6 {[%clk
0:03:01.8]} 7. O-O {[%clk 0:03:06.2]} 7... Bb7 {[%clk 0:03:03.3]} 8. Nc3 {[%clk
0:03:07.5]} 8... Nbd7 {[%clk 0:03:04.6]} 9. b3 {[%clk 0:02:47.6]} 9... Be7
{[%clk 0:03:04.5]} 10. Ba3 {[%clk 0:02:44.6]} 10... O-O {[%clk 0:03:04.4]} 11.
Bxe7 {[%clk 0:02:45.3]} 11... Qxe7 {[%clk 0:03:06.3]} 12. Rc1 {[%clk 0:02:42.1]}
12... Rfd8 {[%clk 0:03:07]} 13. Qc2 {[%clk 0:02:42.8]} 13... c5 {[%clk
0:03:07.5]} 14. Be2 {[%clk 0:02:21.7]} 14... h6 {[%clk 0:03:03]} 15. Rfd1 {[%clk
0:02:22.1]} 15... Rac8 {[%clk 0:02:58.8]} 16. Qb2 {[%clk 0:02:13.7]} 16... cxd4
{[%clk 0:02:51.3]} 17. Nxd4 {[%clk 0:02:07.9]} 17... Nc5 {[%clk 0:02:52]} 18.
Bf3 {[%clk 0:01:59.7]} 18... Bxf3 {[%clk 0:02:51.1]} 19. Nxf3 {[%clk 0:02:00]}
19... Nd3 {[%clk 0:02:51.6]} 20. Qb1 {[%clk 0:01:45.4]} 20... Nxc1 {[%clk
0:02:51.5]} 21. Rxc1 {[%clk 0:01:43.7]} 21... Qa3 {[%clk 0:02:40.4]} 22. h3
{[%clk 0:01:34.8]} 22... Nd5 {[%clk 0:02:39]} 23. Ne2 {[%clk 0:01:21.3]} 23...
Rxc1+ {[%clk 0:02:31.7]} 24. Nxc1 {[%clk 0:01:04.5]} 24... Nc3 {[%clk
0:02:30.9]} 25. Qc2 {[%clk 0:01:01.1]} 25... Qxc1+ {[%clk 0:02:32.1]} 26. Qxc1
{[%clk 0:01:01.2]} 26... Ne2+ {[%clk 0:02:32.6]} 0

[Event "Open Nuevo Centro. Jornada 1"]
[Site "Chess.com"]
[Date "2020.06.19"]
[Round "4"]
[White "Hassomal Daswani, Birjkumar"]
[Black "Gimenez Saiz, Jose Raul"]
[Result "1-0"]
[WhiteElo "1841"]
[BlackElo "1531"]
[TimeControl "180+2"]
[EndTime "11:11:45 PDT"]
[Termination "Victoria de daz000007 por abandono"]

1. e4 {[%clk 0:03:01.8]} 1... d5 {[%clk 0:02:55.9]} 2. exd5 {[%clk 0:03:02.2]}
2... Nf6 {[%clk 0:02:55.5]} 3. d4 {[%clk 0:03:02.6]} 3... Bg4 {[%clk 0:02:54]}
4. Ne2 {[%clk 0:03:02]} 4... Qxd5 {[%clk 0:02:42.9]} 5. Nbc3 {[%clk 0:03:00]}
5... Qh5 {[%clk 0:02:42.3]} 6. f3 {[%clk 0:02:56.5]} 6... Bd7 {[%clk 0:02:26]}
7. Ng3 {[%clk 0:02:55.6]} 7... Qa5 {[%clk 0:02:06.4]} 8. Bd2 {[%clk 0:02:54.1]}
8... c6 {[%clk 0:01:52.1]} 9. Bc4 {[%clk 0:02:51.1]} 9... e6 {[%clk 0:01:28.6]}
10. O-O {[%clk 0:02:47.1]} 10... Qc7 {[%clk 0:01:20.5]} 11. Re1 {[%clk 0:02:46]}
11... Bd6 {[%clk 0:01:16.6]} 12. Nge4 {[%clk 0:02:44.4]} 12... Nxe4 {[%clk
0:01:13.4]} 13. fxe4 {[%clk 0:02:38.7]} 13... Bxh2+ {[%clk 0:01:09.8]} 14. Kh1
{[%clk 0:02:38.5]} 14... Qg3 {[%clk 0:00:56]} 15. Re3 {[%clk 0:02:24.7]} 15...
Qh4 {[%clk 0:00:52.2]} 16. Rh3 {[%clk 0:02:24.4]} 1